bitfinex/quotes_BTCUSD_20240817
["timestamp","ask_amount","ask_price","bid_price","bid_amount"]
[1723862747453,0.17253889,59275.0,59274.0,0.1358724]
[1723862748442,0.17153889,59275.0,59274.0,0.1358724]
[1723862748973,0.17253889,59275.0,59274.0,0.1358724]
[1723862752553,0.17253889,59275.0,59274.0,0.4058044]
[1723862752756,0.17253889,59275.0,59274.0,0.6757364]
[1723862755410,0.17253889,59275.0,59274.0,0.4058044]
[1723862761211,0.17253889,59275.0,59274.0,0.1358724]
[1723862771374,0.22286192,59275.0,59274.0,0.1358724]
[1723862772359,0.24802344,59275.0,59274.0,0.1358724]
[1723862773424,0.17253889,59275.0,59274.0,0.1358724]
[1723862774185,0.32728143,59275.0,59274.0,0.1358724]
[1723862774512,0.32728143,59275.0,59274.0,0.0009064]
[1723862774951,0.32728143,59275.0,59274.0,0.1358724]
[1723862776910,0.32730638,59275.0,59274.0,0.1358724]
[1723862777494,0.32730638,59275.0,59274.0,0.0009064]
[1723862779415,0.42833346,59275.0,59274.0,0.0009064]
[1723862781095,0.42866378,59275.0,59274.0,0.0009064]
[1723862782476,0.42866378,59275.0,59274.0,0.1358724]
[1723862785342,0.42866378,59275.0,59274.0,0.0009064]
[1723862786440,0.4290736,59275.0,59274.0,0.0009064]
[1723862786852,0.32797665,59275.0,59274.0,0.0009064]
[1723862789013,0.45434784,59275.0,59274.0,0.0009064]
[1723862790525,0.17253889,59275.0,59274.0,0.0009064]
[1723862790726,0.4539481,59275.0,59274.0,0.0009064]
[1723862797513,0.32754618,59275.0,59274.0,0.0009064]
[1723862800919,0.59747418,59275.0,59274.0,0.0009064]
[1723862801064,1.00236618,59275.0,59274.0,0.0009064]
[1723862801436,1.23062585,59275.0,59274.0,0.0009064]
[1723862801851,1.00236618,59275.0,59274.0,0.0009064]
[1723862802077,1.23062585,59275.0,59274.0,0.0009064]
[1723862802375,1.40218039,59275.0,59274.0,0.0009064]
[1723862802838,1.23062585,59275.0,59274.0,0.0009064]
[1723862806323,1.15383924,59275.0,59274.0,0.0009064]
[1723862806541,1.38209891,59275.0,59274.0,0.0009064]
[1723862807242,1.15383924,59275.0,59274.0,0.0009064]
[1723862809485,1.00236618,59275.0,59274.0,0.0009064]
[1723862810187,1.27229418,59275.0,59274.0,0.0009064]
[1723862810393,1.42376724,59275.0,59274.0,0.0009064]
[1723862811327,1.49194523,59275.0,59274.0,0.0009064]
[1723862812497,1.6433003,59275.0,59274.0,0.0009064]
[1723862812674,1.48465129,59275.0,59274.0,0.0009064]
[1723862812894,1.63600501,59275.0,59274.0,0.0009064]
[1723862813099,1.41604639,59275.0,59274.0,0.0009064]
[1723862813301,1.58760093,59275.0,59274.0,0.0009064]
[1723862813939,1.58760093,59275.0,59260.0,0.0752]
[1723862813940,0.978161,59249.0,59248.0,0.009075]
[1723862814151,0.93321773,59249.0,59248.0,0.009075]
[1723862814352,0.67631352,59249.0,59248.0,0.009075]
[1723862814669,1.16681409,59249.0,59248.0,0.009075]
[1723862815142,1.04085952,59249.0,59248.0,0.009075]
[1723862815353,1.42556554,59249.0,59248.0,0.009075]
[1723862815495,1.42156554,59249.0,59248.0,0.009075]
[1723862815921,1.43156554,59249.0,59248.0,0.009075]
[1723862816118,1.43256554,59249.0,59248.0,0.009075]
[1723862816318,1.55834649,59249.0,59248.0,0.009075]
[1723862816517,1.43256554,59249.0,59248.0,0.009075]
[1723862816719,1.32090552,59249.0,59248.0,0.009075]
[1723862816919,1.49295898,59249.0,59248.0,0.009075]
[1723862817120,1.49995898,59249.0,59248.0,0.009075]
[1723862817356,0.19996174,59249.0,59248.0,0.009075]
[1723862817502,0.15764179,59249.0,59248.0,0.009075]
[1723862817872,0.15943874,59249.0,59248.0,0.009075]
[1723862818024,0.16351649,59249.0,59248.0,0.009075]
[1723862823029,0.16351649,59249.0,59248.0,0.1441]
[1723862823030,0.06421954,59249.0,59248.0,0.1441]
[1723862823226,0.03521954,59249.0,59248.0,0.1441]
[1723862823783,0.03001649,59249.0,59248.0,0.1441]
[1723862824197,0.02001649,59249.0,59248.0,0.1441]
[1723862825357,0.01901649,59249.0,59248.0,0.1441]
[1723862825562,0.02001649,59249.0,59248.0,0.1441]
[1723862825860,0.02001649,59249.0,59248.0,0.414151]
[1723862826062,0.02101649,59249.0,59248.0,0.414151]
[1723862826291,0.00379695,59249.0,59248.0,0.414151]
[1723862826632,0.00479695,59249.0,59248.0,0.416151]
[1723862828274,0.13029695,59249.0,59248.0,0.1461]
[1723862828448,0.14849346,59249.0,59248.0,0.011075]
[1723862829003,0.28351646,59249.0,59248.0,0.011075]
[1723862829209,0.31186811,59249.0,59248.0,0.011075]
[1723862829583,0.85196011,59249.0,59248.0,0.011075]
[1723862829790,0.82360846,59249.0,59248.0,0.011075]
[1723862830262,0.82160846,59249.0,59248.0,0.009075]
[1723862830863,0.82460846,59249.0,59248.0,0.009075]
[1723862832535,0.89990846,59249.0,59248.0,0.009075]
[1723862835128,0.05499346,59249.0,59248.0,0.148175]
[1723862835939,0.03779695,59249.0,59248.0,0.2832]
[1723862836139,0.05499167,59249.0,59248.0,0.2832]
[1723862838486,0.05299167,59249.0,59248.0,0.2832]
[1723862838688,0.05499167,59249.0,59248.0,0.2832]
[1723862839014,0.05499167,59249.0,59248.0,0.823302]
[1723862839015,0.033,59249.0,59248.0,0.823302]
[1723862839204,0.003,59249.0,59248.0,0.553251]
[1723862839758,0.003,59249.0,59248.0,0.823302]
[1723862839981,0.003,59249.0,59248.0,0.553251]
[1723862845636,0.003,59249.0,59248.0,0.917802]
[1723862846072,0.003,59249.0,59248.0,1.017802]
[1723862846471,0.000825,59251.0,59248.0,1.287853]
[1723862846683,0.000825,59251.0,59250.0,0.544163]
[1723862846888,0.000825,59251.0,59250.0,1.183247]
[1723862847895,0.00062187,59251.0,59250.0,1.182247]
[1723862848526,0.00062187,59251.0,59250.0,1.19405485]
[1723862848729,0.00162187,59251.0,59250.0,1.19505485]
[1723862848930,0.00262187,59251.0,59250.0,1.19505485]
[1723862849783,0.00262187,59251.0,59250.0,1.183247]
[1723862855647,0.00262187,59251.0,59250.0,1.35480154]
[1723862856009,0.00262187,59251.0,59250.0,1.67014565]
[1723862856926,0.00162187,59251.0,59250.0,1.67014565]
[1723862857116,0.00262187,59251.0,59250.0,1.67114565]
[1723862857345,0.00062187,59251.0,59250.0,1.66914565]
[1723862857719,0.00262187,59251.0,59250.0,1.68014565]
[1723862858171,0.00162187,59251.0,59250.0,1.67014268]
[1723862858396,0.00262187,59251.0,59250.0,1.68014268]
[1723862858937,0.00062187,59251.0,59250.0,1.66914268]
[1723862859343,0.00062187,59251.0,59250.0,1.40410068]
[1723862859344,0.00262187,59251.0,59250.0,1.40410068]
[1723862859543,0.00262187,59251.0,59250.0,1.196247]
[1723862859713,0.00262187,59251.0,59250.0,1.210247]
[1723862859914,0.00362187,59251.0,59250.0,1.210247]
[1723862860618,0.00062187,59251.0,59250.0,1.182247]
[1723862861147,0.00262187,59251.0,59250.0,1.205247]
[1723862861522,0.00162187,59251.0,59250.0,1.196247]
[1723862861699,0.00162187,59251.0,59250.0,1.205247]
[1723862861700,0.00262187,59251.0,59250.0,1.205247]
[1723862863588,0.00262187,59251.0,59250.0,1.2061545]
[1723862866505,0.00262187,59251.0,59250.0,1.37770904]
[1723862866712,0.00262187,59251.0,59250.0,1.61430904]
[1723862866908,0.00262187,59251.0,59250.0,1.63730904]
[1723862867133,0.00262187,59251.0,59250.0,1.92965348]
[1723862867592,0.00262187,59251.0,59250.0,1.92965085]
[1723862872081,0.00262187,59251.0,59250.0,2.19969285]
[1723862875228,0.00262187,59251.0,59250.0,2.17759609]
[1723862875465,0.00262187,59251.0,59250.0,1.92985253]
[1723862876100,0.00262187,59251.0,59250.0,2.19989453]
[1723862876303,0.00262187,59251.0,59250.0,2.34244283]
[1723862876477,0.00262187,59251.0,59250.0,2.37625283]
[1723862876680,0.00162187,59251.0,59250.0,2.35325283]
[1723862876982,0.00062187,59251.0,59250.0,2.36825283]
[1723862877227,0.00262187,59251.0,59250.0,2.36825283]
[1723862877373,0.00262187,59251.0,59250.0,2.36225283]
[1723862877576,0.00162187,59251.0,59250.0,2.35325283]
[1723862877755,0.00262187,59251.0,59250.0,2.35925283]
[1723862877955,0.00362187,59251.0,59250.0,2.36825283]
[1723862879361,0.00362187,59251.0,59250.0,1.98889996]
[1723862880320,0.00362187,59251.0,59250.0,1.71885796]
[1723862881400,0.00362187,59251.0,59250.0,1.68504796]
[1723862882122,0.00362187,59251.0,59250.0,1.68505006]
[1723862883655,0.00062187,59251.0,59250.0,1.67005006]
[1723862883958,0.00162187,59251.0,59250.0,1.69805006]
[1723862884194,0.00162187,59251.0,59250.0,1.68405006]
[1723862884395,0.00162187,59251.0,59250.0,1.67005006]
[1723862884619,0.00262187,59251.0,59250.0,1.68405006]
[1723862884819,0.00262187,59251.0,59250.0,1.69805006]
[1723862886255,0.00262187,59251.0,59250.0,1.69805061]
[1723862887394,0.00262187,59251.0,59250.0,1.67505061]
[1723862887593,0.00262187,59251.0,59250.0,1.53595061]
[1723862887997,0.00262187,59251.0,59250.0,1.63055061]
[1723862888774,0.00262187,59251.0,59250.0,1.45899607]
[1723862890421,0.00262187,59251.0,59250.0,1.45899627]
[1723862890913,0.00262187,59251.0,59250.0,1.4366965]
[1723862891084,0.00262187,59251.0,59250.0,1.45899627]
[1723862893624,0.00262187,59251.0,59250.0,1.63055081]
[1723862893837,0.00262187,59251.0,59250.0,1.70915081]
[1723862894355,0.00262187,59251.0,59250.0,1.70915069]
[1723862898331,0.00262187,59251.0,59250.0,1.70935374]
[1723862898524,0.00262187,59251.0,59250.0,1.68705409]
[1723862898729,0.00262187,59251.0,59250.0,1.70935309]
[1723862899786,0.00262187,59251.0,59250.0,1.81186948]
[1723862900013,0.00262187,59251.0,59250.0,1.83486948]
[1723862900187,0.00262187,59251.0,59250.0,1.99109765]
[1723862900494,0.00262187,59251.0,59250.0,2.15146958]
[1723862901338,0.00262187,59251.0,59250.0,1.94051327]
[1723862901544,0.00262187,59251.0,59250.0,1.99111901]
[1723862903207,0.00262187,59251.0,59250.0,1.95420164]
[1723862903500,0.00262187,59251.0,59250.0,1.99111749]
[1723862906712,0.00262187,59251.0,59250.0,1.93190295]
[1723862906910,0.00262187,59251.0,59250.0,1.99111722]
[1723862907077,0.00262187,59251.0,59250.0,2.01641975]
[1723862907281,0.00262187,59251.0,59250.0,2.42277096]
[1723862909799,0.00262187,59251.0,59250.0,2.38891705]
[1723862910653,0.00262187,59251.0,59250.0,2.32970278]
[1723862910876,0.00262187,59251.0,59250.0,2.38891146]
[1723862911314,0.00262187,59251.0,59250.0,2.34685777]
[1723862912145,0.00262187,59251.0,59250.0,2.34294991]
[1723862913634,0.00262187,59251.0,59250.0,2.61299191]
[1723862913835,0.00262187,59251.0,59250.0,2.34294991]
[1723862915306,0.00262187,59251.0,59250.0,2.34294882]
[1723862916251,8.7e-07,59251.0,59250.0,2.61299082]
[1723862916506,8.7e-07,59251.0,59250.0,2.48058947]
[1723862916725,8.7e-07,59251.0,59250.0,2.61253125]
[1723862917804,8.7e-07,59251.0,59250.0,2.68014325]
[1723862918389,0.000825,59275.0,59268.0,0.00020305]
[1723862918390,0.1417,59274.0,59268.0,0.00020305]
[1723862918595,0.1417,59274.0,59273.0,0.769442]
[1723862918810,0.0785,59274.0,59273.0,1.409316]
[1723862919011,0.0785,59274.0,59273.0,1.43160894]
[1723862919227,0.000825,59275.0,59273.0,1.60316348]
[1723862919486,0.000825,59275.0,59274.0,1.26160948]
[1723862919620,0.000825,59275.0,59274.0,1.53154148]
[1723862919822,0.000825,59275.0,59274.0,1.60914148]
[1723862920047,0.000825,59275.0,59274.0,2.18117348]
[1723862920257,0.000825,59275.0,59274.0,2.231767]
[1723862920461,0.000825,59275.0,59274.0,2.36265529]
[1723862920833,0.000825,59275.0,59274.0,2.37466772]
[1723862921298,0.000825,59275.0,59274.0,2.24368523]
[1723862921677,0.000825,59275.0,59274.0,2.19318591]
[1723862921879,0.000825,59275.0,59274.0,2.38866575]
[1723862922076,0.000825,59275.0,59274.0,2.37466575]
[1723862922287,0.000825,59275.0,59274.0,2.24365545]
[1723862922559,0.000825,59275.0,59274.0,2.20718591]
[1723862922759,0.000825,59275.0,59274.0,2.22118591]
[1723862922894,0.000825,59275.0,59274.0,2.22118225]
[1723862927660,0.000825,59275.0,59274.0,2.26323594]
[1723862927870,0.000825,59275.0,59274.0,2.26323571]
[1723862929387,0.000825,59275.0,59274.0,2.22118202]
[1723862930471,0.000825,59275.0,59274.0,2.22118196]
[1723862939993,0.000825,59275.0,59274.0,2.07938196]
[1723862940682,0.000825,59275.0,59274.0,2.07938199]
[1723862941159,0.000825,59275.0,59274.0,2.07938196]
[1723862945038,0.000825,59275.0,59274.0,2.34931396]
[1723862946612,0.000825,59275.0,59274.0,2.38621305]
[1723862946805,0.000825,59275.0,59274.0,2.34931396]
[1723862946998,0.000825,59275.0,59274.0,2.38621305]
[1723862947421,0.000825,59275.0,59274.0,2.37221305]
[1723862947788,0.000825,59275.0,59274.0,2.38621305]
[1723862947980,0.000825,59275.0,59274.0,2.38621295]
[1723862948182,0.000825,59275.0,59274.0,2.37221295]
[1723862948581,0.000825,59275.0,59274.0,2.38621295]
[1723862949243,0.000825,59275.0,59274.0,2.4918012]
[1723862949449,0.000825,59275.0,59274.0,2.3973012]
[1723862949853,0.000825,59275.0,59274.0,2.4918012]
[1723862953171,0.000825,59275.0,59274.0,2.43261322]
[1723862953372,0.000825,59275.0,59274.0,2.4918012]
[1723862954478,0.1445,59286.0,59285.0,1.214469]
[1723862954626,0.0818,59286.0,59285.0,1.66271152]
[1723862955033,0.0818,59286.0,59285.0,1.60352354]
[1723862955209,0.0818,59286.0,59285.0,1.76829948]
[1723862955589,0.0818,59286.0,59285.0,1.79529948]
[1723862958187,0.0627,59288.0,59287.0,1.214428]
[1723862958389,0.0627,59288.0,59287.0,1.53127146]
[1723862958538,0.0627,59288.0,59287.0,1.56817043]
[1723862958738,0.0627,59288.0,59287.0,1.53127146]
[1723862958996,0.0627,59288.0,59287.0,1.56817043]
[1723862959205,0.0627,59288.0,59287.0,1.53127146]
[1723862959392,0.0627,59288.0,59287.0,1.58117043]
[1723862959592,0.0627,59288.0,59287.0,1.54427146]
[1723862959800,0.0627,59288.0,59287.0,1.59117043]
[1723862960002,0.0627,59288.0,59287.0,1.55427146]
[1723862960205,0.0627,59288.0,59287.0,1.59117043]
[1723862960405,0.0627,59288.0,59287.0,1.55427146]
[1723862960632,0.0627,59288.0,59287.0,1.59117043]
[1723862960961,0.0627,59288.0,59287.0,1.55427146]
[1723862961069,0.0627,59288.0,59287.0,1.59117043]
[1723862961272,0.0627,59288.0,59287.0,1.55427146]
[1723862961662,0.0627,59288.0,59287.0,1.59117003]
[1723862961959,0.0627,59288.0,59287.0,1.55427131]
[1723862962146,0.0627,59288.0,59287.0,1.59117003]
[1723862962317,0.0627,59288.0,59287.0,1.55427131]
[1723862962520,0.0627,59288.0,59287.0,1.59117003]
[1723862962696,0.0627,59288.0,59287.0,1.55427131]
[1723862962902,0.0627,59288.0,59287.0,1.59117003]
[1723862963451,0.082624,59289.0,59288.0,1.21441]
[1723862963651,0.082624,59289.0,59288.0,1.76823205]
[1723862964284,0.000824,59289.0,59288.0,2.57094579]
[1723862964669,0.0818,59301.0,59291.0,0.58749505]
[1723862964977,0.0818,59301.0,59291.0,1.79530284]
[1723862965190,0.0818,59301.0,59291.0,2.33501284]
[1723862965776,0.0818,59301.0,59291.0,2.4866992]
[1723862965970,0.0818,59301.0,59291.0,2.69736671]
[1723862966167,0.0627,59303.0,59291.0,2.60485046]
[1723862966574,0.0627,59303.0,59291.0,2.55725193]
[1723862966793,0.0627,59303.0,59291.0,2.6164218]
[1723862967013,0.0818,59304.0,59291.0,2.6164218]
[1723862967937,0.0818,59304.0,59291.0,2.6444218]
[1723862968107,0.0818,59304.0,59291.0,2.6304218]
[1723862968470,0.0818,59304.0,59291.0,2.6444218]
[1723862968941,0.0818,59304.0,59291.0,2.6304218]
[1723862969126,0.0818,59304.0,59291.0,2.6444218]
[1723862969838,0.0818,59304.0,59291.0,2.65594079]
[1723862970220,0.0818,59304.0,59291.0,2.61905323]
[1723862970422,0.0818,59304.0,59291.0,2.72293787]
[1723862970638,0.0818,59304.0,59291.0,2.7821082]
[1723862970808,0.0818,59304.0,59291.0,2.74522035]
[1723862971325,0.0818,59304.0,59291.0,2.65680726]
[1723862972119,0.0818,59304.0,59291.0,2.72082889]
[1723862974158,0.0818,59304.0,59291.0,2.69282889]
[1723862974323,0.0818,59304.0,59291.0,2.70682889]
[1723862974929,0.0818,59304.0,59291.0,2.68454641]
[1723862975135,0.0818,59304.0,59291.0,2.70682871]
[1723862975329,0.0818,59304.0,59291.0,2.72082871]
[1723862975582,0.0818,59304.0,59291.0,2.74672117]
[1723862975958,0.0818,59304.0,59291.0,2.47434766]
[1723862976160,0.0818,59304.0,59291.0,2.4932059]
[1723862976615,0.0818,59304.0,59291.0,2.63641266]
[1723862976770,0.0818,59304.0,59291.0,2.81431266]
[1723862976949,0.0818,59304.0,59291.0,2.63641266]
[1723862977160,0.0818,59304.0,59291.0,2.5607709]
[1723862978606,0.1361,59298.0,59291.0,2.63641266]
[1723862978807,0.1361,59298.0,59291.0,2.5607709]
[1723862979591,0.1361,59298.0,59291.0,2.63641325]
[1723862979818,0.1361,59298.0,59291.0,2.79000437]
[1723862980034,0.1361,59298.0,59291.0,2.79000419]
[1723862980235,0.1361,59298.0,59291.0,2.63639934]
[1723862980412,0.1361,59298.0,59291.0,2.79012255]
[1723862980826,0.1361,59298.0,59291.0,2.63639934]
[1723862981171,0.1361,59298.0,59291.0,2.78964692]
[1723862981600,0.1361,59298.0,59291.0,2.76736421]
[1723862981804,0.1361,59298.0,59291.0,2.78964682]
[1723862982407,0.1361,59298.0,59291.0,2.61118722]
[1723862982610,0.1361,59298.0,59291.0,2.5056072]
[1723862983782,0.1361,59298.0,59291.0,2.5056079]
[1723862984797,0.1361,59298.0,59291.0,2.6111665]
[1723862985253,0.1361,59298.0,59291.0,2.45519189]
[1723862985453,0.1361,59298.0,59291.0,2.61116676]
[1723862985683,0.1361,59298.0,59291.0,2.56074764]
[1723862987328,0.1361,59298.0,59291.0,2.59763693]
[1723862987791,0.1361,59298.0,59291.0,2.59763583]
[1723862988291,0.1361,59298.0,59291.0,2.67326386]
[1723862988536,0.1361,59298.0,59291.0,2.59763583]
[1723862989319,0.1361,59298.0,59291.0,2.67326892]
[1723862989546,0.1361,59298.0,59291.0,2.58255942]
[1723862989749,0.1361,59298.0,59291.0,2.49524724]
[1723862989954,0.1361,59298.0,59291.0,2.47700305]
[1723862990073,0.1361,59298.0,59291.0,2.76233259]
[1723862990269,0.076,59298.0,59291.0,2.60776864]
[1723862990475,0.1427,59300.0,59291.0,2.76169975]
[1723862992054,0.1427,59300.0,59291.0,2.78691056]
[1723862992210,0.0812,59300.0,59291.0,2.78691056]
[1723862992419,0.0812,59300.0,59291.0,2.81211946]
[1723862994533,0.1427,59302.0,59291.0,2.81211946]
[1723862995062,0.1427,59302.0,59291.0,2.79811946]
[1723862995266,0.1427,59302.0,59291.0,2.78411946]
[1723862995562,0.1427,59302.0,59291.0,2.81211946]
[1723862995762,0.1427,59302.0,59291.0,2.79811946]
[1723862995964,1e-06,59292.0,59291.0,2.78411946]
[1723862996180,1e-06,59292.0,59291.0,2.78411906]
[1723862996402,1e-06,59292.0,59291.0,2.67206391]
[1723862996599,1e-06,59292.0,59291.0,2.65806391]
[1723862997279,1e-06,59292.0,59291.0,2.67206391]
[1723862997722,1e-06,59292.0,59291.0,2.65806391]
[1723862997922,1e-06,59292.0,59291.0,2.67206391]
[1723862998292,0.0812,59302.0,59301.0,1.48415205]
[1723862998550,0.0615,59304.0,59303.0,0.13510305]
[1723862998757,0.0812,59305.0,59304.0,0.13510105]
[1723862998929,0.0812,59305.0,59304.0,1.22847181]
[1723862999127,0.0812,59305.0,59304.0,1.76806381]
[1723862999329,0.0615,59306.0,59305.0,1.21426205]
[1723862999534,0.0615,59306.0,59305.0,1.94333181]
[1723862999748,0.0812,59307.0,59306.0,0.67467005]
[1723862999947,0.0812,59307.0,59306.0,1.13394881]
[1723863000206,0.0812,59307.0,59306.0,1.67352281]
[1723863002049,0.0812,59307.0,59306.0,1.68752281]
[1723863002557,0.0812,59307.0,59306.0,1.70152281]
[1723863003269,0.0812,59307.0,59306.0,1.64235406]
[1723863003469,0.0812,59307.0,59306.0,1.7015188]
[1723863005869,0.0812,59307.0,59306.0,1.70131575]
[1723863006264,0.0812,59307.0,59306.0,1.75176328]
[1723863007172,0.0812,59307.0,59306.0,1.75196633]
[1723863007393,0.0812,59307.0,59306.0,1.7015188]
[1723863008442,0.0812,59307.0,59306.0,1.94210071]
[1723863009288,0.0812,59307.0,59306.0,1.96732448]
[1723863009772,0.0812,59307.0,59306.0,1.96712143]
[1723863009986,0.0812,59307.0,59306.0,1.80089126]
[1723863010118,0.0812,59307.0,59306.0,1.90643439]
[1723863010312,0.0812,59307.0,59306.0,1.63473959]
[1723863010515,0.0812,59307.0,59306.0,1.96811985]
[1723863011960,0.0812,59307.0,59306.0,1.96812031]
[1723863014143,0.0812,59307.0,59306.0,1.96832336]
[1723863014825,0.0812,59307.0,59306.0,1.99191004]
[1723863015989,0.0812,59307.0,59306.0,1.93274484]
[1723863016233,0.00062204,59309.0,59308.0,1.21420405]
[1723863016470,0.00062204,59309.0,59308.0,1.58389451]
[1723863016687,0.14442204,59309.0,59308.0,1.60689451]
[1723863017144,0.14442204,59309.0,59308.0,1.81026219]
[1723863017387,0.14442204,59309.0,59308.0,1.86114684]
[1723863017560,0.14442204,59309.0,59308.0,1.62089451]
[1723863018084,0.14442204,59309.0,59308.0,1.54503921]
[1723863018282,0.14442204,59309.0,59308.0,1.55903921]
[1723863018477,0.14442204,59309.0,59308.0,1.59592386]
[1723863018918,0.14442204,59309.0,59308.0,1.55903921]
[1723863019282,0.14442204,59309.0,59308.0,1.59592386]
[1723863020089,0.14442204,59309.0,59308.0,1.53675859]
[1723863020263,0.14442204,59309.0,59308.0,1.59592402]
[1723863020661,0.14442204,59309.0,59308.0,1.6464923]
[1723863020846,0.14442204,59309.0,59308.0,1.64628884]
[1723863022728,0.14442204,59309.0,59308.0,1.64649189]
[1723863023296,0.14442204,59309.0,59308.0,1.59592402]
[1723863024148,0.14442204,59309.0,59308.0,1.59592443]
[1723863024509,0.14442204,59309.0,59308.0,2.00724585]
[1723863024750,0.00062204,59309.0,59308.0,2.30230926]
[1723863024956,0.00062204,59309.0,59308.0,2.32158223]
[1723863025570,0.00062204,59309.0,59308.0,2.32983223]
[1723863025792,0.00062204,59309.0,59308.0,2.31583223]
[1723863026003,0.00062204,59309.0,59308.0,2.30183223]
[1723863026302,0.00062204,59309.0,59308.0,2.31583223]
[1723863026509,0.00062204,59309.0,59308.0,2.32983223]
[1723863026705,0.00062204,59309.0,59308.0,2.17588223]
[1723863027104,0.00062204,59309.0,59308.0,2.16188223]
[1723863027577,0.00062204,59309.0,59308.0,2.2880768]
[1723863028326,0.00062204,59309.0,59308.0,2.29245473]
[1723863028730,0.00062204,59309.0,59308.0,2.29245029]
[1723863028885,0.00062204,59309.0,59308.0,2.30645029]
[1723863029084,0.00062204,59309.0,59308.0,2.29245029]
[1723863029263,0.00062204,59309.0,59308.0,2.15205171]
[1723863029471,0.00062204,59309.0,59308.0,2.30645391]
[1723863030311,0.00062204,59309.0,59308.0,2.18005171]
[1723863032251,0.00062204,59309.0,59308.0,2.12089031]
[1723863032462,0.00062204,59309.0,59308.0,2.18005171]
[1723863032779,0.00062204,59309.0,59308.0,2.18014529]
[1723863037432,0.00062204,59309.0,59308.0,1.91016424]
[1723863037700,0.00062204,59309.0,59308.0,1.65333474]
[1723863040359,0.00062204,59309.0,59308.0,1.65333668]
[1723863041759,0.00062204,59309.0,59308.0,1.63105554]
[1723863041962,0.00062204,59309.0,59308.0,1.92794143]
[1723863042348,0.00062204,59309.0,59308.0,1.85205232]
[1723863042522,0.00062204,59309.0,59308.0,1.86605232]
[1723863042706,0.00062204,59309.0,59308.0,1.83805232]
[1723863043081,0.00062204,59309.0,59308.0,1.86605232]
[1723863043903,0.00062204,59309.0,59308.0,1.8875364]
[1723863044110,0.13712204,59309.0,59308.0,1.22862844]
[1723863044313,0.13712204,59309.0,59308.0,0.99450553]
[1723863045049,0.13712204,59309.0,59308.0,0.98050553]
[1723863045670,0.13712204,59309.0,59308.0,1.09450553]
[1723863045884,0.13712204,59309.0,59308.0,1.08050553]
[1723863046088,0.13712204,59309.0,59308.0,1.06650553]
[1723863046290,0.13712204,59309.0,59308.0,1.09350553]
[1723863046700,0.13712204,59309.0,59308.0,1.07950553]
[1723863046873,0.13712204,59309.0,59308.0,1.09350553]
[1723863048589,0.13712204,59309.0,59308.0,1.0935058]
[1723863050291,0.13712204,59309.0,59308.0,1.071223]
[1723863050497,0.13712204,59309.0,59308.0,1.0935058]
[1723863050866,0.13712204,59309.0,59308.0,1.071223]
[1723863051072,0.13712204,59309.0,59308.0,1.0935058]
[1723863051281,0.13712204,59309.0,59308.0,1.071223]
[1723863051641,0.13712204,59309.0,59308.0,1.0935058]
[1723863051999,0.13712204,59309.0,59308.0,1.071223]
[1723863052343,0.13712204,59309.0,59308.0,1.09350578]
[1723863052567,0.13712204,59309.0,59308.0,1.071223]
[1723863052959,0.13712204,59309.0,59308.0,1.09350578]
[1723863053162,0.13712204,59309.0,59308.0,1.071223]
[1723863054665,0.13712204,59309.0,59308.0,1.165723]
[1723863057023,0.13712204,59309.0,59308.0,1.071223]
[1723863057330,0.13712204,59309.0,59308.0,0.801445]
[1723863057528,0.15011727,59309.0,59308.0,0.801445]
[1723863058193,0.13712204,59309.0,59308.0,0.801445]
[1723863058356,0.13712204,59309.0,59308.0,0.787445]
[1723863058556,0.13712204,59309.0,59308.0,0.774445]
[1723863058762,0.13712204,59309.0,59308.0,0.784445]
[1723863059386,0.13812204,59309.0,59308.0,0.784445]
[1723863059544,0.13812204,59309.0,59308.0,0.774445]
[1723863059934,0.13812204,59309.0,59308.0,0.785445]
[1723863060972,0.13912204,59309.0,59308.0,0.785445]
[1723863061396,0.15112272,59309.0,59308.0,0.785445]
[1723863061803,0.15291967,59309.0,59308.0,0.774445]
[1723863062159,0.15291967,59309.0,59308.0,0.784445]
[1723863062363,0.15291967,59309.0,59308.0,0.01]
[1723863062364,0.27941967,59309.0,59308.0,0.01]
[1723863062627,0.27941967,59309.0,59302.0,0.00020299]
[1723863062628,0.3119,59303.0,59302.0,0.00020299]
[1723863062798,0.27329695,59303.0,59302.0,0.00020299]
[1723863063175,0.40819695,59303.0,59302.0,0.00020299]
[1723863063381,0.28625774,59303.0,59302.0,0.00020299]
[1723863063759,0.00379695,59300.0,59299.0,0.134909]
[1723863063972,0.00379695,59298.0,59297.0,0.134912]
[1723863064197,0.14879695,59298.0,59297.0,0.40474]
[1723863064408,0.16174653,59298.0,59297.0,0.40474]
[1723863065440,0.16274653,59298.0,59297.0,0.40474]
[1723863065559,0.16574653,59298.0,59297.0,0.40574]
[1723863065755,0.16574653,59298.0,59297.0,0.40474]
[1723863065756,0.16274653,59298.0,59297.0,0.40474]
[1723863066185,0.16574653,59298.0,59297.0,0.40874]
[1723863066651,0.16574653,59298.0,59297.0,0.134912]
[1723863067041,0.16574653,59298.0,59297.0,0.137912]
[1723863067258,0.16394958,59298.0,59297.0,0.677568]
[1723863067406,0.15894958,59298.0,59297.0,0.677568]
[1723863067627,0.146,59298.0,59297.0,0.677568]
[1723863067839,0.149,59298.0,59297.0,0.678568]
[1723863068413,0.149,59298.0,59297.0,0.675568]
[1723863068734,0.146,59298.0,59297.0,0.678568]
[1723863069059,0.149,59298.0,59297.0,0.678568]
[1723863069259,0.149,59298.0,59297.0,0.674568]
[1723863069479,0.149,59298.0,59297.0,0.679568]
[1723863070530,0.149,59298.0,59297.0,0.69074753]
[1723863070758,0.149,59298.0,59297.0,0.679568]
[1723863071293,0.151,59298.0,59297.0,0.679568]
[1723863071519,0.149,59298.0,59297.0,0.679568]
[1723863071691,0.151,59298.0,59297.0,0.679568]
[1723863072117,0.15279695,59298.0,59297.0,0.679568]
[1723863072528,0.15279695,59298.0,59297.0,0.40974]
[1723863073270,0.16554123,59298.0,59297.0,0.40974]
[1723863079417,0.16554123,59298.0,59297.0,0.4106475]
[1723863079644,0.16636623,59298.0,59297.0,0.4106475]
[1723863087481,0.01777227,59298.0,59297.0,0.8249755]
[1723863087655,0.01677227,59298.0,59297.0,1.1236035]
[1723863087854,0.003825,59298.0,59297.0,1.2893035]
[1723863088414,0.003825,59298.0,59297.0,1.77597627]
[1723863088813,0.003825,59298.0,59297.0,1.78703292]
[1723863089213,0.003825,59298.0,59297.0,1.78203292]
[1723863089767,0.000825,59298.0,59297.0,1.78203292]
[1723863090086,0.003825,59298.0,59297.0,1.66453292]
[1723863090641,0.003825,59298.0,59297.0,1.68253292]
[1723863090829,0.000825,59298.0,59297.0,1.68252754]